bitfinex-derivatives/quotes_BTCF0:USTF0_20250718
["timestamp","ask_amount","ask_price","bid_price","bid_amount"]
[1752856843509,0.173537,117910.0,117900.0,0.7964652]
[1752856843712,0.173537,117910.0,117900.0,1.1572652]
[1752856843918,0.004,117910.0,117900.0,1.7795852]
[1752856844914,0.002,117910.0,117900.0,1.7795852]
[1752856845621,0.002,117910.0,117900.0,1.70344255]
[1752856846022,0.04029,117930.0,117920.0,0.2156626]
[1752856846222,0.2097982,117930.0,117920.0,0.78125399]
[1752856846421,0.0463,117930.0,117920.0,0.78125399]
[1752856846618,0.0463,117930.0,117920.0,2.19975524]
[1752856846822,1.2677247,117940.0,117930.0,0.2851382]
[1752856847018,1.2677247,117940.0,117930.0,0.34609834]
[1752856847216,1.2677247,117940.0,117930.0,0.72027945]
[1752856847420,1.2677247,117940.0,117930.0,0.78123959]
[1752856847724,0.6452847,117940.0,117930.0,0.78123959]
[1752856848125,0.2864847,117940.0,117930.0,0.78123959]
[1752856848324,0.2884847,117940.0,117930.0,0.72027945]
[1752856848618,0.2384947,117940.0,117930.0,0.72027945]
[1752856848825,0.2137847,117940.0,117930.0,0.78123959]
[1752856849027,0.1734947,117940.0,117930.0,0.72027945]
[1752856849522,0.2197947,117940.0,117930.0,1.35062576]
[1752856849825,0.2884847,117940.0,117930.0,1.39625309]
[1752856850122,0.6492847,117940.0,117930.0,1.39625309]
[1752856850915,0.2884847,117940.0,117930.0,1.39625309]
[1752856851125,0.2577447,117940.0,117930.0,1.71142576]
[1752856851321,0.2577447,117940.0,117930.0,1.3962237]
[1752856851923,0.1908747,117940.0,117930.0,1.3962237]
[1752856852124,0.1734947,117940.0,117930.0,1.3962237]
[1752856852324,0.2197947,117940.0,117930.0,1.3962237]
[1752856852524,0.2884847,117940.0,117930.0,1.3962237]
[1752856853326,0.004,117940.0,117930.0,1.3962237]
[1752856854027,0.004,117940.0,117930.0,1.71142576]
[1752856854229,0.004,117940.0,117930.0,1.75697379]
[1752856854424,0.004,117940.0,117930.0,1.71142576]
[1752856854829,0.004,117940.0,117930.0,1.7723859]
[1752856855525,0.0463,117960.0,117950.0,0.2851095]
[1752856855827,0.0463,117960.0,117950.0,1.34025075]
[1752856856031,0.065,117960.0,117950.0,1.38577255]
[1752856856226,0.5952514,117970.0,117960.0,0.2850951]
[1752856856531,0.6452414,117970.0,117960.0,0.72023635]
[1752856858829,0.6452414,117970.0,117960.0,0.72123635]
[1752856859130,0.5952424,117980.0,117970.0,0.2850808]
[1752856859428,0.2844324,117980.0,117970.0,1.33878205]
[1752856860432,0.2854324,117980.0,117970.0,1.33878205]
[1752856860630,0.2074008,117970.0,117960.0,0.79690965]
[1752856860932,0.6422008,117970.0,117960.0,1.41191365]
[1752856861127,0.6422008,117970.0,117960.0,0.80480365]
[1752856862129,0.6422008,117970.0,117960.0,0.70803635]
[1752856863230,0.6422008,117970.0,117960.0,0.65282635]
[1752856863434,0.2827751,117960.0,117950.0,0.79291655]
[1752856863631,0.2827751,117960.0,117940.0,0.92620605]
[1752856863632,0.9855532,117960.0,117940.0,0.92620605]
[1752856863932,0.6435895,117950.0,117940.0,0.70819695]
[1752856864131,0.6435895,117950.0,117940.0,0.67836695]
[1752856864327,0.6435895,117950.0,117940.0,0.2432257]
[1752856864534,0.6435895,117950.0,117940.0,0.67836695]
[1752856864729,0.6435895,117950.0,117940.0,0.70819695]
[1752856864922,0.6435895,117950.0,117940.0,0.71219695]
[1752856865428,0.11331,117950.0,117940.0,0.72624695]
[1752856865631,0.04761,117950.0,117940.0,1.08704695]
[1752856865832,0.6237,117950.0,117940.0,1.08704695]
[1752856866228,0.66565,117950.0,117940.0,1.08704695]
[1752856866832,0.01719,117950.0,117940.0,1.08704695]
[1752856867727,0.01719,117950.0,117940.0,0.6519057]
[1752856867930,0.01719,117950.0,117940.0,1.70508695]
[1752856868437,0.01719,117950.0,117940.0,1.75060875]
[1752856868930,0.01719,117950.0,117940.0,1.82492508]
[1752856869536,0.00566,117950.0,117940.0,1.82492508]
[1752856871232,0.04761,117950.0,117940.0,1.82492508]
[1752856872034,0.3608,117970.0,117940.0,1.73723298]
[1752856872236,0.73131,117970.0,117960.0,0.78249268]
[1752856872439,1.2615608,117970.0,117960.0,0.78249268]
[1752856872746,1.2615608,117970.0,117960.0,0.2730351]
[1752856873938,1.2615608,117970.0,117960.0,0.1694651]
[1752856874140,1.2615608,117970.0,117960.0,0.1704651]
[1752856874341,1.27934053,117970.0,117960.0,0.1704651]
[1752856874840,1.27934053,117970.0,117960.0,0.1988851]
[1752856875240,1.10988973,117970.0,117960.0,0.1988851]
[1752856875445,1.10988973,117970.0,117960.0,0.2740351]
[1752856875643,1.27934053,117970.0,117960.0,0.2740351]
[1752856878750,1.27930043,117970.0,117960.0,0.2740351]
[1752856879345,0.91850043,117970.0,117960.0,0.78349268]
[1752856879849,0.91851795,117970.0,117960.0,0.78349268]
[1752856880249,0.30055795,117970.0,117960.0,0.78349268]
[1752856880452,0.91847795,117970.0,117960.0,0.78349268]
[1752856881253,0.91843795,117970.0,117960.0,0.78349268]
[1752856881549,0.2827607,117970.0,117960.0,0.79454268]
[1752856881753,0.9006407,117970.0,117960.0,0.79454268]
[1752856882352,0.91844782,117970.0,117960.0,0.79454268]
[1752856882753,0.9006407,117970.0,117960.0,0.84006448]
[1752856883148,0.2827607,117970.0,117960.0,0.84006448]
[1752856883350,0.9006407,117970.0,117960.0,0.79454268]
[1752856884156,0.9006407,117970.0,117960.0,1.15534268]
[1752856884353,0.9006407,117970.0,117960.0,1.21630282]
[1752856884551,0.73119,117970.0,117960.0,1.21630282]
[1752856885050,0.09494,117970.0,117960.0,1.21630282]
[1752856885258,0.06705,117980.0,117970.0,0.2730207]
[1752856885451,0.06705,117980.0,117970.0,1.20000321]
[1752856885754,0.900532,117990.0,117980.0,0.2840564]
[1752856885954,0.900532,117990.0,117980.0,0.83917983]
[1752856886345,0.900532,117990.0,117980.0,0.32972225]
[1752856886551,0.900532,117990.0,117980.0,0.31867225]
[1752856886756,0.900532,117990.0,117980.0,0.82812983]
[1752856887155,0.901532,117990.0,117980.0,0.83917983]
[1752856888049,0.901532,117990.0,117980.0,0.79351398]
[1752856888353,0.904532,117990.0,117980.0,0.8391483]
[1752856888957,0.904532,117990.0,117980.0,0.8280983]
[1752856889358,0.904532,117990.0,117980.0,0.83660238]
[1752856889559,0.904532,117990.0,117980.0,0.3271448]
[1752856889959,0.904532,117990.0,117980.0,0.83660238]
[1752856890453,0.838752,117990.0,117980.0,0.84765238]
[1752856890759,0.904452,117990.0,117980.0,0.84765238]
[1752856890962,0.73503,117990.0,117980.0,0.72701533]
[1752856891154,0.73503,117990.0,117980.0,1.08781533]
[1752856891555,0.904452,117990.0,117980.0,1.08781533]
[1752856891757,0.904452,117990.0,117980.0,0.72701533]
[1752856892058,0.904452,117990.0,117980.0,0.79576412]
[1752856892260,0.904452,117990.0,117980.0,0.84133988]
[1752856893058,0.904452,117990.0,117980.0,0.79576412]
[1752856893455,0.904452,117990.0,117980.0,1.15656412]
[1752856893654,0.73503,117990.0,117980.0,1.15656412]
[1752856893854,0.73503,117990.0,117980.0,0.79576412]
[1752856894560,0.286732,117990.0,117980.0,0.79576412]
[1752856894754,0.11731,117990.0,117980.0,1.15656412]
[1752856894955,0.11731,117990.0,117980.0,0.79576412]
[1752856895160,0.08942,117990.0,117980.0,1.20212318]
[1752856895461,0.08942,117990.0,117980.0,1.15656412]
[1752856895660,0.07105,117990.0,117980.0,1.15656412]
[1752856895864,0.06805,117990.0,117980.0,1.15656412]
[1752856896059,0.06905,117990.0,117980.0,1.83508426]
[1752856896564,0.01919,117990.0,117980.0,1.83508426]
[1752856896758,0.002,117990.0,117980.0,1.83508426]
[1752856897466,1.1770753,118010.0,118000.0,0.2256676]
[1752856897467,0.47506,118010.0,118000.0,0.2256676]
[1752856897665,0.11426,118010.0,118000.0,0.71720245]
[1752856898164,0.11426,118010.0,118000.0,1.07800245]
[1752856898667,0.11426,118010.0,118000.0,2.1299373]
[1752856898860,0.003,118010.0,118000.0,2.1299373]
[1752856899463,0.003,118010.0,118000.0,2.19089744]
[1752856899961,0.62921,118020.0,118010.0,0.2827333]
[1752856899962,0.66421,118020.0,118010.0,0.2827333]
[1752856900270,0.6836,118020.0,118010.0,1.07798815]
[1752856900567,0.06612,118020.0,118010.0,1.07798815]
[1752856901865,0.06812,118020.0,118010.0,1.07798815]
[1752856902370,0.2856389,118020.0,118010.0,1.69534815]
[1752856903166,0.2856389,118020.0,118010.0,0.6435333]
[1752856903369,0.2836389,118020.0,118010.0,1.33450815]
[1752856903569,0.2836389,118020.0,118010.0,1.69530815]
[1752856903763,0.2836389,118020.0,118010.0,1.33450815]
[1752856904062,0.2836389,118020.0,118010.0,0.2827333]
[1752856904272,0.2132733,118010.0,118000.0,0.76248865]
[1752856904469,0.9008933,118010.0,118000.0,0.76248865]
[1752856904767,0.9008933,118010.0,118000.0,0.78993865]
[1752856905662,0.9008933,118010.0,118000.0,0.79093865]
[1752856905863,1.2616933,118010.0,118000.0,0.79093865]
[1752856906062,1.2616933,118010.0,118000.0,0.79193865]
[1752856906269,0.9008933,118010.0,118000.0,0.79193865]
[1752856907765,0.9008933,118010.0,118000.0,0.3574838]
[1752856908068,1.28086536,118010.0,118000.0,0.3574838]
[1752856908269,1.28086536,118010.0,118000.0,0.3244038]
[1752856908469,0.92006536,118010.0,118000.0,0.3244038]
[1752856908768,0.92006536,118010.0,118000.0,0.3574838]
[1752856909064,0.10408206,118010.0,118000.0,0.80388865]
[1752856909270,0.01917206,118010.0,118000.0,1.8555435]
[1752856909470,0.01917206,118010.0,118000.0,2.2163435]
[1752856910069,0.01917206,118010.0,118000.0,2.27693934]
[1752856911376,0.01917206,118010.0,118000.0,2.2920883]
[1752856912475,0.06590206,118010.0,118000.0,2.2920883]
[1752856912978,0.03660206,118010.0,118000.0,2.2163435]
[1752856913174,0.03660206,118010.0,118000.0,1.39288968]
[1752856913374,0.01743,118010.0,118000.0,2.26179938]
[1752856913678,0.04673,118010.0,118000.0,2.26179938]
[1752856914677,0.01743,118010.0,118000.0,2.26179938]
[1752856914978,0.0057,118010.0,118000.0,2.26179938]
[1752856915875,0.1750932,118010.0,118000.0,1.39288968]
[1752856916073,0.2543032,118010.0,118000.0,1.74264423]
[1752856916272,0.2836532,118010.0,118000.0,1.69702835]
[1752856916477,0.2836532,118010.0,118000.0,1.74251749]
[1752856916676,0.11426,118010.0,118000.0,1.74251749]
[1752856916878,0.11426,118010.0,118000.0,1.74236096]
[1752856917075,0.06612,118020.0,118010.0,0.2827332]
[1752856917275,0.06612,118020.0,118010.0,1.12347719]
[1752856917674,0.2354989,118020.0,118010.0,1.12347719]
[1752856917975,0.2836389,118020.0,118010.0,1.12347719]
[1752856918373,0.2836389,118020.0,118010.0,1.07798805]
[1752856918678,0.8818745,118030.0,118020.0,0.2136888]
[1752856918878,0.8818745,118030.0,118020.0,0.71717365]
[1752856919180,0.09547,118030.0,118020.0,0.71717365]
[1752856919774,0.09647,118030.0,118020.0,0.71717365]
[1752856919977,0.11526,118030.0,118020.0,0.71717365]
[1752856920177,0.2846246,118030.0,118020.0,0.71717365]
[1752856920376,0.11526,118030.0,118020.0,0.71717365]
[1752856920977,0.08591,118030.0,118020.0,0.71717365]
[1752856921178,0.2552745,118030.0,118020.0,0.71717365]
[1752856921378,0.08591,118030.0,118020.0,0.2827188]
[1752856921577,0.08591,118030.0,118020.0,1.07797365]
[1752856921578,0.2552745,118030.0,118020.0,1.07797365]
[1752856921779,0.2552745,118030.0,118020.0,0.71717365]
[1752856921977,0.2845345,118030.0,118020.0,0.71717365]
[1752856922380,0.2865345,118030.0,118020.0,1.07797365]
[1752856923777,0.003,118030.0,118020.0,1.07797365]
[1752856923979,0.003,118030.0,118020.0,1.69489365]
[1752856925477,0.002,118030.0,118020.0,1.69489365]
[1752856925684,1.3016614,118050.0,118040.0,0.2120006]
[1752856925885,1.3197091,118050.0,118040.0,0.70120545]
[1752856926084,1.3630091,118050.0,118040.0,0.70120545]
[1752856926481,1.2783359,118050.0,118040.0,0.71267545]
[1752856926682,1.2783359,118050.0,118040.0,0.72130119]
[1752856926882,0.9235359,118050.0,118040.0,0.72130119]
[1752856928193,0.3066559,118050.0,118040.0,0.72130119]
[1752856929684,0.1373077,118050.0,118040.0,0.72130119]
[1752856930081,0.0897377,118050.0,118040.0,1.33814119]
[1752856930386,0.0240477,118050.0,118040.0,1.33814119]
[1752856930586,0.006,118050.0,118040.0,1.69894119]
[1752856931085,0.003,118050.0,118040.0,1.69894119]
[1752856931287,0.001,118050.0,118040.0,1.69894119]
[1752856932083,0.2167164,118050.0,118040.0,1.69894119]
[1752856932685,0.001,118050.0,118040.0,1.69894119]
[1752856932881,0.001,118050.0,118040.0,2.13339604]
[1752856933088,0.6820771,118090.0,118080.0,0.09162]
[1752856933277,0.77687573,118090.0,118080.0,0.53185485]
[1752856933479,0.41607573,118090.0,118080.0,0.2666934]
[1752856933682,0.25832673,118090.0,118070.0,0.0846487]
[1752856933880,0.2825677,118070.0,118060.0,0.74349595]
[1752856934079,0.2825677,118070.0,118060.0,0.3205111]
[1752856934284,0.2825677,118070.0,118060.0,0.75496595]
[1752856934486,0.2349977,118070.0,118060.0,0.3205111]
[1752856934989,0.2349977,118070.0,118060.0,0.75496595]
[1752856935289,0.2825677,118070.0,118060.0,0.3090411]
[1752856935488,0.2825677,118070.0,118060.0,0.75496595]
[1752856935691,0.2349977,118070.0,118060.0,0.75496595]
[1752856935882,0.06569,118070.0,118060.0,0.75496595]
[1752856936086,0.01725,118080.0,118070.0,0.2781777]
[1752856936289,0.643339,118090.0,118080.0,0.2666934]
[1752856936485,0.643339,118090.0,118080.0,0.71261825]
[1752856936685,0.649339,118090.0,118080.0,0.2781634]
[1752856936884,0.66738942,118090.0,118080.0,0.10887]
[1752856937090,0.66738942,118090.0,118080.0,0.10602199]
[1752856937391,1.29890942,118090.0,118080.0,0.07014]
[1752856937591,1.29890942,118090.0,118080.0,0.2394334]
[1752856938091,1.29914942,118090.0,118080.0,0.2394334]
[1752856938292,1.283099,118090.0,118080.0,0.0974]
[1752856938690,0.1933234,118080.0,118070.0,0.36003865]
[1752856938994,1.07780825,118080.0,118070.0,0.27540185]
[1752856939291,0.6433534,118080.0,118070.0,0.27540185]
[1752856939488,0.6433534,118080.0,118070.0,0.27990548]
[1752856939795,0.2825677,118070.0,118060.0,0.1693217]
[1752856940089,0.282582,118060.0,118050.0,0.83126617]
[1752856940481,0.282582,118060.0,118050.0,0.9090502]
[1752856940784,0.403129,118070.0,118050.0,0.7397242]
[1752856941089,0.67986,118070.0,118060.0,0.91362034]
[1752856941292,0.72843,118070.0,118060.0,0.91362034]
[1752856941592,0.8694777,118070.0,118060.0,0.91362034]
[1752856941787,0.9170477,118070.0,118060.0,0.37125837]
[1752856941988,0.2825677,118070.0,118060.0,0.87969811]
[1752856942186,0.9164877,118070.0,118060.0,0.87969811]
[1752856942386,1.2772877,118070.0,118060.0,0.87969811]
[1752856942585,1.2772877,118070.0,118060.0,0.79503961]
[1752856942790,1.2782877,118070.0,118060.0,0.266722]
[1752856942987,0.9174877,118070.0,118060.0,0.266722]
[1752856943384,0.2835677,118070.0,118060.0,0.278192]
[1752856943588,1.2793277,118070.0,118060.0,0.278192]
[1752856943993,1.2793277,118070.0,118060.0,0.28659902]
[1752856944394,1.2793277,118070.0,118060.0,0.79503876]
[1752856945795,1.2793277,118070.0,118060.0,0.239462]
[1752856946191,1.2793277,118070.0,118060.0,0.24808271]
[1752856946389,1.2793277,118070.0,118060.0,0.78378245]
[1752856946692,1.2793277,118070.0,118060.0,0.77516174]
[1752856947291,0.9185277,118070.0,118060.0,0.77516174]
[1752856947790,0.9185277,118070.0,118060.0,0.266722]
[1752856948297,1.2793277,118070.0,118060.0,0.266722]
[1752856949199,0.11426,118070.0,118060.0,0.266722]
[1752856949393,0.11426,118070.0,118060.0,0.77516174]
[1752856949593,0.47506,118070.0,118060.0,0.77516174]
[1752856949796,0.11426,118070.0,118060.0,0.77516174]
[1752856950091,0.6443675,118070.0,118060.0,0.266722]
[1752856950299,1.2820075,118070.0,118060.0,0.77516174]
[1752856950600,0.7519,118070.0,118060.0,0.278192]
[1752856950803,0.7519,118070.0,118060.0,0.78663174]
[1752856951002,0.7519,118070.0,118060.0,0.278192]
[1752856951298,0.7519,118070.0,118060.0,0.78663174]
[1752856951493,0.9212074,118070.0,118060.0,0.78663174]
[1752856952101,0.7519,118070.0,118060.0,0.77516174]
[1752856952401,0.9212074,118070.0,118060.0,0.77516174]
[1752856952601,0.9212074,118070.0,118060.0,0.266722]
[1752856952806,0.7519,118070.0,118060.0,0.77516174]
[1752856953105,1.2820074,118070.0,118060.0,0.77516174]
[1752856954307,1.2820074,118070.0,118060.0,0.266722]
[1752856954906,1.2820074,118070.0,118060.0,0.0974]
[1752856955102,1.2820074,118070.0,118060.0,0.2667218]
[1752856955805,1.2820074,118070.0,118060.0,0.77516154]
[1752856956005,1.2820074,118070.0,118060.0,0.2667218]
[1752856956202,1.2998274,118070.0,118060.0,0.77516154]
[1752856956407,1.2820074,118070.0,118060.0,0.77516154]
[1752856956805,0.9212074,118070.0,118060.0,0.2667218]
[1752856957203,1.2820074,118070.0,118060.0,0.77516154]
[1752856957409,1.2820074,118070.0,118060.0,0.04542012]
[1752856957608,1.2820074,118070.0,118060.0,0.07577447]
[1752856957808,1.2820074,118070.0,118060.0,0.21474182]
[1752856958002,1.2820074,118070.0,118060.0,0.04542012]
[1752856958708,1.2820074,118070.0,118060.0,0.07578079]
[1752856959307,1.2820074,118070.0,118060.0,0.21474182]
[1752856962511,1.2820074,118070.0,118060.0,0.24190182]
[1752856963010,1.2820074,118070.0,118060.0,0.24963671]
[1752856964201,1.2820074,118070.0,118060.0,0.21926242]
[1752856964807,1.2820074,118070.0,118060.0,0.19210242]
[1752856965010,1.2820074,118070.0,118060.0,0.02278072]
[1752856965212,1.2820074,118070.0,118060.0,0.19210242]
[1752856966708,1.2820074,118070.0,118060.0,0.02278072]
[1752856967413,1.2820074,118070.0,118060.0,0.19210242]
[1752856967703,1.2820074,118070.0,118060.0,0.02278072]
[1752856967912,1.2820074,118070.0,118060.0,0.19210242]
[1752856968504,1.2820074,118070.0,118060.0,0.21926242]
[1752856968811,1.2820074,118070.0,118060.0,0.04994072]
[1752856969204,1.2820074,118070.0,118060.0,0.48714033]
[1752856969508,1.2820074,118070.0,118060.0,0.63368131]
[1752856969910,1.2794074,118070.0,118060.0,0.62609971]
[1752856970309,1.2794074,118070.0,118060.0,0.683634]
[1752856970611,1.2794074,118070.0,118060.0,0.65325971]
[1752856971211,1.2794074,118070.0,118060.0,0.21927439]
[1752856971411,1.2794074,118070.0,118060.0,0.24964868]
[1752856972613,1.2794074,118070.0,118060.0,0.752534]
[1752856972919,1.2794074,118070.0,118060.0,0.74478714]
[1752856973115,1.2794074,118070.0,118060.0,0.57546544]
[1752856973312,1.2794074,118070.0,118060.0,0.54329544]
[1752856974514,1.2794074,118070.0,118060.0,0.71261714]
[1752856974814,1.2794074,118070.0,118060.0,0.10931012]
[1752856975014,1.2794074,118070.0,118060.0,0.54329544]
[1752856975205,1.2794074,118070.0,118060.0,0.10931012]
[1752856975409,1.2794074,118070.0,118060.0,0.27863182]
[1752856975814,1.2794074,118070.0,118060.0,0.10931012]
[1752856976211,1.2794074,118070.0,118060.0,0.27863182]
[1752856976406,1.2794074,118070.0,118060.0,0.27863172]
[1752856976615,1.2794074,118070.0,118060.0,0.10931012]
[1752856977011,1.71339272,118070.0,118060.0,0.04542012]
[1752856978519,1.71339272,118070.0,118060.0,0.21474172]
[1752856978819,1.71339272,118070.0,118060.0,0.04542012]
[1752856979809,0.1693216,118060.0,118050.0,0.06060768]
[1752856980015,0.277306,118050.0,118040.0,0.9204121]
[1752856980214,1.274586,118050.0,118040.0,0.13879768]
[1752856980415,1.29324661,118050.0,118040.0,0.06060768]
[1752856980616,1.29324661,118050.0,118030.0,0.2652639]
[1752856980617,0.2663303,118040.0,118030.0,0.41070208]
[1752856980917,1.07157562,118040.0,118030.0,0.15666768]
[1752856981121,0.2760546,118030.0,118020.0,0.02806]
[1752856981420,0.276069,118020.0,118010.0,0.2656634]
[1752856981721,0.276069,118020.0,118010.0,0.34162179]
[1752856981919,0.276069,118020.0,118010.0,0.78439118]
[1752856982114,0.276069,118020.0,118010.0,1.15577118]
[1752856982322,0.276069,118020.0,118010.0,1.21652087]
[1752856982620,0.276069,118020.0,118010.0,0.70657716]
[1752856982916,0.276069,118020.0,118010.0,0.17180376]
[1752856982917,1.07085432,118020.0,118010.0,0.17180376]
[1752856983122,1.07085432,118020.0,118010.0,0.14471376]
[1752856983320,0.636869,118020.0,118010.0,0.08396407]
[1752856983523,1.07085432,118020.0,118010.0,0.08396407]
[1752856983722,0.636869,118020.0,118010.0,0.28044737]
[1752856984120,0.636869,118020.0,118010.0,0.28344737]
[1752856984318,0.636869,118020.0,118010.0,0.71743269]
[1752856984518,0.636869,118020.0,118010.0,0.71543269]
[1752856984719,0.636869,118020.0,118010.0,0.71243269]
[1752856984913,0.276069,118020.0,118010.0,0.71343269]
[1752856985115,0.276069,118020.0,118010.0,0.71043269]
[1752856985925,0.911869,118020.0,118010.0,0.71043269]
[1752856986123,0.276069,118020.0,118010.0,0.54103939]
[1752856986326,0.911989,118020.0,118010.0,0.54103939]
[1752856987624,0.911989,118020.0,118010.0,0.05647407]
[1752856988022,1.272789,118020.0,118010.0,0.05647407]
[1752856989126,1.72399537,118020.0,118010.0,0.002]
[1752856991327,1.70677432,118020.0,118010.0,0.002]
[1752856991722,1.272789,118020.0,118010.0,0.002]
[1752856991922,1.70677432,118020.0,118010.0,0.1713933]
[1752856992120,1.70677432,118020.0,118010.0,0.002]
[1752856994823,1.70417432,118020.0,118010.0,0.002]
[1752856996618,1.70353432,118020.0,118010.0,0.002]
[1752856996819,1.07085432,118020.0,118010.0,0.002]
[1752856997024,1.70341432,118020.0,118010.0,0.002]
[1752856997220,1.70341432,118020.0,118000.0,0.27549528]
[1752856997221,1.70350732,118020.0,118000.0,0.00859738]
[1752856997419,0.1873219,117990.0,117980.0,0.2657052]
[1752856997726,0.9085919,117990.0,117980.0,0.2657062]
[1752856997926,0.9085919,117990.0,117980.0,0.69969152]
[1752856999031,0.9085919,117990.0,117980.0,0.53025532]
[1752856999226,0.9085919,117990.0,117980.0,0.09627]
[1752856999427,0.9085919,117990.0,117980.0,0.265706]
[1752856999627,0.9085919,117990.0,117980.0,0.27406927]
[1752857000028,0.9085919,117990.0,117980.0,0.28106927]
[1752857001128,0.2761119,117990.0,117980.0,0.28106927]
[1752857001334,0.9076319,117990.0,117980.0,0.28106927]
[1752857001739,0.9076319,117990.0,117980.0,0.11163327]
[1752857002234,0.2761119,117990.0,117980.0,0.28106927]
[1752857002432,0.9076319,117990.0,117980.0,0.28106927]
[1752857003938,1.2684319,117990.0,117980.0,0.11163327]
[1752857004236,1.2684319,117990.0,117980.0,0.28106927]
[1752857004237,1.70241722,117990.0,117980.0,0.28106927]
[1752857004537,1.2684319,117990.0,117980.0,0.28106927]
[1752857005527,0.9076319,117990.0,117980.0,0.28106927]
[1752857006033,0.9076319,117990.0,117980.0,0.28106917]
[1752857006337,0.2761119,117990.0,117980.0,0.72563449]
[1752857006638,0.9074719,117990.0,117980.0,1.08643449]
[1752857007838,0.9074719,117990.0,117980.0,1.07585449]
[1752857008032,0.9074719,117990.0,117980.0,0.71505449]
[1752857009637,0.9074719,117990.0,117980.0,0.54561859]
[1752857009842,0.9074719,117990.0,117980.0,0.71505439]
[1752857010136,0.9074719,117990.0,117980.0,0.28106907]
[1752857010943,0.9074719,117990.0,117980.0,0.11163327]
[1752857011439,1.34145722,117990.0,117980.0,0.01536327]
[1752857012036,1.34145722,117990.0,117980.0,0.04158327]
[1752857013135,1.34145722,117990.0,117980.0,0.24711897]
[1752857013335,1.34145722,117990.0,117980.0,0.27387897]
[1752857013536,0.9074719,117990.0,117980.0,0.27387897]
[1752857013941,0.9074719,117990.0,117980.0,0.27922897]
[1752857014637,0.2761119,117990.0,117980.0,0.71321429]
[1752857014842,0.9040719,117990.0,117980.0,1.08505429]
[1752857015042,0.2761119,117990.0,117980.0,1.08505429]
[1752857015236,0.9040719,117990.0,117980.0,1.08505429]
[1752857016945,0.9040719,117990.0,117980.0,0.65106897]
[1752857017137,0.9040719,117990.0,117980.0,1.08505429]
[1752857017442,0.9040719,117990.0,117980.0,0.72425429]
[1752857017638,0.9040719,117990.0,117980.0,1.08505429]
[1752857018543,0.8776719,117990.0,117980.0,1.08505429]
[1752857018743,0.2297024,118000.0,117990.0,0.2638508]
[1752857018942,0.8988551,118000.0,117990.0,1.06967612]
[1752857019143,0.2720551,118000.0,117990.0,1.06967612]
[1752857019843,0.3186151,118000.0,117990.0,1.07167612]
[1752857020045,0.3186151,118000.0,117990.0,0.6376908]
[1752857020241,0.9453751,118000.0,117990.0,1.07167612]
[1752857020545,0.9453751,118000.0,117990.0,1.07467612]
[1752857022240,0.9453751,118000.0,117990.0,0.6406908]
[1752857022447,0.9453751,118000.0,117990.0,1.07467612]
[1752857024246,0.9453751,118000.0,117990.0,1.13542581]
[1752857026237,1.3061751,118000.0,117990.0,0.59416501]
[1752857026437,1.74016042,118000.0,117990.0,0.005]
[1752857028845,1.74890834,118000.0,117990.0,0.005]
[1752857029942,1.74890834,118000.0,117970.0,0.02622]
[1752857029943,0.2655949,117980.0,117970.0,0.02622]
[1752857030249,1.69715022,117980.0,117970.0,0.02622]
[1752857030544,1.69715022,117980.0,117970.0,0.1956693]
[1752857030848,1.69715022,117980.0,117970.0,0.08714076]
[1752857031047,1.69715022,117980.0,117970.0,0.06492076]
[1752857031248,1.76367357,117980.0,117970.0,0.06492076]
[1752857031449,1.76367357,117980.0,117970.0,0.06992076]
[1752857031948,1.76367357,117980.0,117970.0,0.23936996]
[1752857032144,1.76367357,117980.0,117970.0,0.29226224]
[1752857032145,1.32968825,117980.0,117970.0,0.29226224]
[1752857032346,0.2762849,117980.0,117970.0,0.7264168]
[1752857032551,0.2762849,117980.0,117970.0,1.16317519]
[1752857032757,0.10685,117980.0,117970.0,1.16317519]
[1752857033049,0.10685,117990.0,117980.0,0.1873749]
[1752857033251,0.276262,118000.0,117990.0,0.2748905]
[1752857033442,0.909662,118000.0,117990.0,1.06967582]
[1752857033851,0.276262,118000.0,117990.0,1.06967582]
[1752857034549,0.277262,118000.0,117990.0,0.70887582]
[1752857034754,0.277262,118000.0,117990.0,1.06967582]
[1752857034950,0.910262,118000.0,117990.0,1.06967582]
[1752857035150,0.910262,118000.0,117990.0,1.07067582]
[1752857036855,0.909982,118000.0,117990.0,1.07067582]
[1752857038954,0.909982,118000.0,117990.0,1.1315682]
[1752857039457,0.277262,118000.0,117990.0,1.1315682]
[1752857039755,0.71037,118000.0,117990.0,1.1315682]
[1752857040255,0.71037,118000.0,117990.0,1.07067582]
[1752857040450,0.63678,118000.0,117990.0,1.07067582]
[1752857040658,0.001,118000.0,117990.0,1.14663421]
[1752857040857,0.001,118000.0,117990.0,1.77683421]
[1752857041058,0.001,118000.0,117990.0,1.94633021]
[1752857042959,0.001,118000.0,117990.0,1.93123393]
[1752857044860,0.1704062,118000.0,117990.0,1.93123393]
[1752857045260,0.001,118000.0,117990.0,1.94633021]
[1752857045660,0.001,118000.0,117990.0,2.24153021]
[1752857049664,0.001,118000.0,117990.0,2.07203421]
[1752857053069,0.001,118000.0,117990.0,1.99607582]
[1752857054268,0.001,118000.0,117990.0,2.43006114]
[1752857054468,0.001,118000.0,117990.0,2.49077668]
[1752857055168,0.1704082,118000.0,117990.0,2.48693668]
[1752857055371,0.2723182,118000.0,117990.0,2.05235136]
[1752857055770,0.2723182,118000.0,117990.0,1.06579336]
[1752857056165,0.2723183,118000.0,117990.0,1.06579336]
[1752857057566,0.2723183,118000.0,117990.0,0.77059336]
[1752857059271,0.6331183,118000.0,117990.0,0.32556804]
[1752857059473,0.6331183,118000.0,117990.0,0.75955276]
[1752857060177,0.2723183,118000.0,117990.0,0.69883722]
[1752857060368,0.6331183,118000.0,117990.0,0.69883722]
[1752857060973,0.2723183,118000.0,117990.0,0.69883722]
[1752857061374,0.2723183,118000.0,117990.0,0.2752719]
[1752857061574,0.2723183,118000.0,117990.0,0.70925722]
[1752857061774,0.2723183,118000.0,117990.0,0.76997276]
[1752857062771,0.2723183,118000.0,117990.0,0.70925722]
[1752857062976,0.2723183,118000.0,117990.0,0.76997276]
[1752857068078,0.2723183,118000.0,117990.0,0.60055086]
[1752857069278,0.2723183,118000.0,117990.0,0.16656554]
[1752857069480,0.2723183,118000.0,117990.0,0.60055086]
[1752857069979,0.2723183,118000.0,117990.0,0.76997356]
[1752857070278,0.8977583,118000.0,117990.0,0.76997356]
[1752857071174,0.2723183,118000.0,117990.0,0.76997356]
[1752857071475,0.2723183,118000.0,117990.0,2.12928334]
[1752857071476,0.001,118000.0,117990.0,2.12928334]
[1752857071680,0.1704083,118000.0,117990.0,2.20524173]
[1752857071978,0.1704083,118000.0,117990.0,1.77125641]
[1752857073282,0.001,118000.0,117990.0,2.20524173]
[1752857073576,0.1704079,118000.0,117990.0,2.12928334]
[1752857073772,0.001,118000.0,117990.0,2.12928334]